[Event "Titled Tuesday Blitz October 11 Late 2022"]
[White "Quesada Perez, Yuniesky"]
[Black "Andreikin, Dmitry"]
[WhiteFideId "3504409"]
[BlackFideId "4158814"]
[WhiteElo "2599"]
[BlackElo "2736"]
[Result "0-1"]
[Round "06"]
[TimeControl "180+1"]
[Date "2022.10.11"]
[WhiteClock "0:00:03"]
[BlackClock "0:00:31"]

1. e4 {[%clk 0:03:00]}  c5 {[%clk 0:02:58]} 2. Nf3 {[%clk 0:03:00]}  e6 {[%clk 0:02:59]} 3. d4 {[%clk 0:03:00]}  cxd4 {[%clk 0:03:00]} 4. Nxd4 {[%clk 0:03:00]}  Nc6 {[%clk 0:03:00]} 5. Nc3 {[%clk 0:03:00]}  Qc7 {[%clk 0:03:00]} 6. f4 {[%clk 0:02:59]}  a6 {[%clk 0:02:59]} 7. Nxc6 {[%clk 0:02:59]}  Qxc6 {[%clk 0:02:58]} 8. Bd3 {[%clk 0:03:00]}  b5 {[%clk 0:02:57]} 9. Qe2 {[%clk 0:03:00]}  Bb7 {[%clk 0:02:57]} 10. Bd2 {[%clk 0:03:00]}  Be7 {[%clk 0:02:42]} 11. a3 {[%clk 0:02:59]}  Rc8 {[%clk 0:02:32]} 12. O-O-O {[%clk 0:02:57]}  b4 {[%clk 0:02:27]} 13. axb4 {[%clk 0:02:58]}  Bxb4 {[%clk 0:02:26]} 14. Qg4 {[%clk 0:02:56]}  Bf8 {[%clk 0:02:11]} 15. f5 {[%clk 0:02:28]}  Nf6 {[%clk 0:02:09]} 16. Qh4 {[%clk 0:02:22]}  Qc7 {[%clk 0:01:58]} 17. g4 {[%clk 0:02:04]}  h5 {[%clk 0:01:46]} 18. g5 {[%clk 0:01:21]}  Ng4 {[%clk 0:01:46]} 19. g6 {[%clk 0:01:21]}  f6 {[%clk 0:01:38]} 20. fxe6 {[%clk 0:01:07]}  dxe6 {[%clk 0:01:39]} 21. Be2 {[%clk 0:00:33]}  Ne5 {[%clk 0:01:36]} 22. Bf4 {[%clk 0:00:28]}  Ba3 {[%clk 0:01:28]} 23. Qg3 {[%clk 0:00:15]}  Bxe4 {[%clk 0:01:03]} 24. Rhe1 {[%clk 0:00:12]}  Qxc3 {[%clk 0:01:00]} 25. Qxc3 {[%clk 0:00:12]}  Rxc3 {[%clk 0:01:01]} 26. Bb5+ {[%clk 0:00:11]}  axb5 {[%clk 0:00:57]} 27. Rxe4 {[%clk 0:00:12]}  Nxg6 {[%clk 0:00:44]} 28. Rxe6+ {[%clk 0:00:07]}  Kf7 {[%clk 0:00:40]} 29. Re4 {[%clk 0:00:07]}  Rhc8 {[%clk 0:00:36]} 30. Rd7+ {[%clk 0:00:06]}  Kg8 {[%clk 0:00:36]} 31. bxa3 {[%clk 0:00:03]}  Rxc2+ {[%clk 0:00:37]} 32. Kb1 {[%clk 0:00:04]}  Nxf4 {[%clk 0:00:35]} 33. Rxf4 {[%clk 0:00:04]}  Rxh2 {[%clk 0:00:35]} 34. Re4 {[%clk 0:00:03]}  Rg2 {[%clk 0:00:31]} 0-1


[Site "https://www.chess.com"]

[Event "Titled Tuesday Blitz October 11 Late 2022"]
[White "Rasulov, Vugar"]
[Black "Fedoseev, Vladimir"]
[WhiteFideId "13402390"]
[BlackFideId "24130737"]
[WhiteElo "2509"]
[BlackElo "2726"]
[Result "0-1"]
[Round "06"]
[TimeControl "180+1"]
[Date "2022.10.11"]
[WhiteClock "0:00:02"]
[BlackClock "0:00:44"]

1. e4 {[%clk 0:03:00]}  c5 {[%clk 0:02:40]} 2. Nf3 {[%clk 0:03:00]}  Nc6 {[%clk 0:02:40]} 3. Bb5 {[%clk 0:02:59]}  g6 {[%clk 0:02:39]} 4. O-O {[%clk 0:02:58]}  Bg7 {[%clk 0:02:39]} 5. Re1 {[%clk 0:02:58]}  e5 {[%clk 0:02:39]} 6. Bxc6 {[%clk 0:02:55]}  dxc6 {[%clk 0:02:40]} 7. d3 {[%clk 0:02:55]}  Qe7 {[%clk 0:02:38]} 8. a4 {[%clk 0:02:48]}  f6 {[%clk 0:02:35]} 9. a5 {[%clk 0:02:48]}  Be6 {[%clk 0:02:34]} 10. Nc3 {[%clk 0:02:40]}  Nh6 {[%clk 0:02:30]} 11. b3 {[%clk 0:02:39]}  Nf7 {[%clk 0:02:27]} 12. Na4 {[%clk 0:02:38]}  b5 {[%clk 0:02:23]} 13. axb6 {[%clk 0:02:37]}  axb6 {[%clk 0:02:23]} 14. Ba3 {[%clk 0:02:31]}  Qb7 {[%clk 0:02:18]} 15. Bxc5 {[%clk 0:02:00]}  bxc5 {[%clk 0:02:15]} 16. Nxc5 {[%clk 0:02:01]}  Rxa1 {[%clk 0:02:15]} 17. Qxa1 {[%clk 0:02:02]}  Qe7 {[%clk 0:02:10]} 18. Qa8+ {[%clk 0:01:49]}  Nd8 {[%clk 0:02:10]} 19. d4 {[%clk 0:01:40]}  O-O {[%clk 0:02:07]} 20. b4 {[%clk 0:01:40]}  Bg4 {[%clk 0:02:04]} 21. d5 {[%clk 0:01:29]}  cxd5 {[%clk 0:01:57]} 22. Qxd5+ {[%clk 0:01:19]}  Nf7 {[%clk 0:01:56]} 23. c4 {[%clk 0:01:01]}  Rd8 {[%clk 0:01:46]} 24. Qc6 {[%clk 0:01:01]}  Bf8 {[%clk 0:01:41]} 25. Ra1 {[%clk 0:00:52]}  Rb8 {[%clk 0:01:33]} 26. h3 {[%clk 0:00:40]}  Rxb4 {[%clk 0:01:22]} 27. hxg4 {[%clk 0:00:34]}  Qxc5 {[%clk 0:01:22]} 28. Qxf6 {[%clk 0:00:34]}  Rb2 {[%clk 0:01:22]} 29. Ne1 {[%clk 0:00:23]}  Rb6 {[%clk 0:01:13]} 30. Qf3 {[%clk 0:00:22]}  Qxc4 {[%clk 0:01:13]} 31. Nd3 {[%clk 0:00:18]}  Rb3 {[%clk 0:01:09]} 32. Rd1 {[%clk 0:00:18]}  Be7 {[%clk 0:01:07]} 33. g3 {[%clk 0:00:17]}  Kg7 {[%clk 0:01:06]} 34. Qe2 {[%clk 0:00:12]}  Ng5 {[%clk 0:01:05]} 35. f3 {[%clk 0:00:11]}  Ne6 {[%clk 0:01:00]} 36. Qa2 {[%clk 0:00:10]}  Nd4 {[%clk 0:00:53]} 37. Nxe5 {[%clk 0:00:10]}  Qc5 {[%clk 0:00:53]} 38. Nd3 {[%clk 0:00:07]}  Nxf3+ {[%clk 0:00:50]} 39. Kg2 {[%clk 0:00:07]}  Rxd3 {[%clk 0:00:49]} 40. Rxd3 {[%clk 0:00:02]}  Ne1+ {[%clk 0:00:48]} 41. Kh3 {[%clk 0:00:03]}  Nxd3 {[%clk 0:00:48]} 42. Qa1+ {[%clk 0:00:03]}  Bf6 {[%clk 0:00:47]} 43. Qa8 {[%clk 0:00:02]}  Nf2+ {[%clk 0:00:47]} 44. Kg2 {[%clk 0:00:03]}  Nxg4 {[%clk 0:00:47]} 45. Qb7+ {[%clk 0:00:03]}  Kh6 {[%clk 0:00:47]} 46. Qd7 {[%clk 0:00:03]}  Qf2+ {[%clk 0:00:46]} 47. Kh3 {[%clk 0:00:03]}  Ne5 {[%clk 0:00:43]} 48. Qe6 {[%clk 0:00:02]}  Qf1+ {[%clk 0:00:43]} 49. Kh2 {[%clk 0:00:02]}  Nf3# {[%clk 0:00:44]} 0-1


[Site "https://www.chess.com"]

[Event "Titled Tuesday Blitz October 11 Late 2022"]
[White "Reprintsev, Alexander"]
[Black "Kostiukov, Alexandr"]
[WhiteFideId "14100541"]
[BlackFideId "14108100"]
[WhiteElo "2230"]
[BlackElo "2202"]
[Result "0-1"]
[Round "06"]
[TimeControl "180+1"]
[Date "2022.10.12"]
[WhiteClock "0:00:02"]
[BlackClock "0:00:03"]

1. e4 {[%clk 0:02:47]}  c5 {[%clk 0:02:59]} 2. b3 {[%clk 0:02:47]}  g6 {[%clk 0:02:59]} 3. Bb2 {[%clk 0:02:46]}  Nf6 {[%clk 0:02:59]} 4. e5 {[%clk 0:02:46]}  Nd5 {[%clk 0:02:59]} 5. Nc3 {[%clk 0:02:46]}  Nxc3 {[%clk 0:02:52]} 6. dxc3 {[%clk 0:02:46]}  Nc6 {[%clk 0:02:50]} 7. Nf3 {[%clk 0:02:20]}  Bg7 {[%clk 0:02:50]} 8. Qd5 {[%clk 0:02:19]}  Qa5 {[%clk 0:02:35]} 9. b4 {[%clk 0:01:58]}  Qc7 {[%clk 0:02:10]} 10. Bc4 {[%clk 0:01:44]}  O-O {[%clk 0:02:00]} 11. Qxc5 {[%clk 0:01:40]}  b6 {[%clk 0:01:53]} 12. Qe3 {[%clk 0:01:33]}  Nxe5 {[%clk 0:01:50]} 13. Nxe5 {[%clk 0:01:27]}  Bxe5 {[%clk 0:01:49]} 14. Bd5 {[%clk 0:01:25]}  Rb8 {[%clk 0:01:38]} 15. h4 {[%clk 0:01:22]}  e6 {[%clk 0:01:23]} 16. Bf3 {[%clk 0:01:21]}  d5 {[%clk 0:01:20]} 17. h5 {[%clk 0:01:20]}  Bg7 {[%clk 0:01:17]} 18. hxg6 {[%clk 0:01:18]}  hxg6 {[%clk 0:01:16]} 19. O-O-O {[%clk 0:01:07]}  a5 {[%clk 0:01:05]} 20. b5 {[%clk 0:01:05]}  Qc4 {[%clk 0:00:58]} 21. Be2 {[%clk 0:00:58]}  Qxa2 {[%clk 0:00:56]} 22. Qf4 {[%clk 0:00:40]}  Bd7 {[%clk 0:00:45]} 23. Rh4 {[%clk 0:00:37]}  a4 {[%clk 0:00:22]} 24. Qb4 {[%clk 0:00:23]}  a3 {[%clk 0:00:15]} 25. Qxa3 {[%clk 0:00:21]}  Qxa3 {[%clk 0:00:15]} 26. Bxa3 {[%clk 0:00:21]}  Rfc8 {[%clk 0:00:15]} 27. c4 {[%clk 0:00:20]}  Ra8 {[%clk 0:00:14]} 28. Bb2 {[%clk 0:00:20]}  Ra2 {[%clk 0:00:11]} 29. Bxg7 {[%clk 0:00:20]}  Kxg7 {[%clk 0:00:11]} 30. Rd2 {[%clk 0:00:16]}  Rc5 {[%clk 0:00:09]} 31. cxd5 {[%clk 0:00:15]}  exd5 {[%clk 0:00:08]} 32. Rb4 {[%clk 0:00:15]}  Bf5 {[%clk 0:00:08]} 33. Bd1 {[%clk 0:00:13]}  Kf6 {[%clk 0:00:06]} 34. f3 {[%clk 0:00:12]}  Ra5 {[%clk 0:00:06]} 35. Be2 {[%clk 0:00:12]}  Bd7 {[%clk 0:00:05]} 36. g3 {[%clk 0:00:08]}  Bxb5 {[%clk 0:00:04]} 37. Bxb5 {[%clk 0:00:06]}  Raxb5 {[%clk 0:00:05]} 38. Rbd4 {[%clk 0:00:06]}  Ke6 {[%clk 0:00:04]} 39. Kd1 {[%clk 0:00:06]}  Kd6 {[%clk 0:00:04]} 40. Ke2 {[%clk 0:00:07]}  Rc3 {[%clk 0:00:04]} 41. R4d3 {[%clk 0:00:06]}  Rbc5 {[%clk 0:00:04]} 42. Rxc3 {[%clk 0:00:05]}  Rxc3 {[%clk 0:00:04]} 43. Kf2 {[%clk 0:00:05]}  Kc5 {[%clk 0:00:04]} 44. Re2 {[%clk 0:00:05]}  Kd6 {[%clk 0:00:04]} 45. g4 {[%clk 0:00:06]}  b5 {[%clk 0:00:03]} 46. g5 {[%clk 0:00:06]}  b4 {[%clk 0:00:04]} 47. Kg3 {[%clk 0:00:06]}  Rc7 {[%clk 0:00:02]} 48. Kg4 {[%clk 0:00:05]}  Re7 {[%clk 0:00:02]} 49. Rd2 {[%clk 0:00:05]}  Re3 {[%clk 0:00:02]} 50. f4 {[%clk 0:00:04]}  Kc5 {[%clk 0:00:02]} 51. Rd1 {[%clk 0:00:04]}  Rc3 {[%clk 0:00:02]} 52. Rd2 {[%clk 0:00:04]}  d4 {[%clk 0:00:02]} 53. Re2 {[%clk 0:00:04]}  Kc4 {[%clk 0:00:03]} 54. Re7 {[%clk 0:00:04]}  Rxc2 {[%clk 0:00:02]} 55. Rxf7 {[%clk 0:00:04]}  b3 {[%clk 0:00:02]} 56. Rc7+ {[%clk 0:00:02]}  Kd3 {[%clk 0:00:02]} 57. Rb7 {[%clk 0:00:03]}  b2 {[%clk 0:00:02]} 58. f5 {[%clk 0:00:03]}  gxf5+ {[%clk 0:00:03]} 59. Kxf5 {[%clk 0:00:03]}  Rf2+ {[%clk 0:00:03]} 60. Ke5 {[%clk 0:00:03]}  Rg2 {[%clk 0:00:03]} 61. Kf4 {[%clk 0:00:02]}  Kc2 {[%clk 0:00:02]} 62. Rc7+ {[%clk 0:00:02]}  Kb1 {[%clk 0:00:03]} 63. Rd7 {[%clk 0:00:02]}  Kc1 {[%clk 0:00:02]} 64. Rc7+ {[%clk 0:00:02]}  Rc2 {[%clk 0:00:03]} 0-1


[Site "https://www.chess.com"]

[Event "Titled Tuesday Blitz October 11 Late 2022"]
[White "Reshetnikov, Alexey"]
[Black "Koellner, Ruben Gideon"]
[WhiteFideId "4162080"]
[BlackFideId "12993093"]
[WhiteElo "2502"]
[BlackElo "2303"]
[Result "1-0"]
[Round "06"]
[TimeControl "180+1"]
[Date "2022.10.11"]
[WhiteClock "0:00:30"]
[BlackClock "0:00:02"]

1. e4 {[%clk 0:03:00]}  d6 {[%clk 0:03:00]} 2. d4 {[%clk 0:03:00]}  Nf6 {[%clk 0:03:00]} 3. Nc3 {[%clk 0:03:01]}  e5 {[%clk 0:03:01]} 4. Nf3 {[%clk 0:03:01]}  Nbd7 {[%clk 0:03:01]} 5. Bc4 {[%clk 0:03:01]}  Be7 {[%clk 0:03:01]} 6. O-O {[%clk 0:03:01]}  c6 {[%clk 0:03:02]} 7. a4 {[%clk 0:03:00]}  h6 {[%clk 0:03:02]} 8. Re1 {[%clk 0:03:00]}  Qc7 {[%clk 0:03:03]} 9. a5 {[%clk 0:02:59]}  Nf8 {[%clk 0:03:02]} 10. h3 {[%clk 0:02:57]}  g5 {[%clk 0:03:03]} 11. d5 {[%clk 0:02:38]}  Ng6 {[%clk 0:03:02]} 12. Bb3 {[%clk 0:02:31]}  a6 {[%clk 0:02:55]} 13. Be3 {[%clk 0:02:26]}  c5 {[%clk 0:02:55]} 14. Na4 {[%clk 0:02:24]}  g4 {[%clk 0:02:53]} 15. Nb6 {[%clk 0:02:23]}  Rb8 {[%clk 0:02:27]} 16. Nxc8 {[%clk 0:02:22]}  Qxc8 {[%clk 0:02:27]} 17. hxg4 {[%clk 0:02:20]}  Qxg4 {[%clk 0:02:14]} 18. Nd2 {[%clk 0:02:10]}  Qh4 {[%clk 0:01:50]} 19. Ba4+ {[%clk 0:02:11]}  Kf8 {[%clk 0:01:49]} 20. Qf3 {[%clk 0:01:53]}  Ng4 {[%clk 0:01:45]} 21. Nc4 {[%clk 0:01:41]}  Rg8 {[%clk 0:01:21]} 22. Bd7 {[%clk 0:00:52]}  Qh2+ {[%clk 0:01:11]} 23. Kf1 {[%clk 0:00:52]}  Nh4 {[%clk 0:01:11]} 24. Qh3 {[%clk 0:00:52]}  Nxe3+ {[%clk 0:01:02]} 25. Nxe3 {[%clk 0:00:49]}  Qxh3 {[%clk 0:00:35]} 26. Bxh3 {[%clk 0:00:50]}  Bg5 {[%clk 0:00:24]} 27. Nc4 {[%clk 0:00:50]}  Ke7 {[%clk 0:00:22]} 28. Ra3 {[%clk 0:00:49]}  Ng6 {[%clk 0:00:13]} 29. g3 {[%clk 0:00:47]}  h5 {[%clk 0:00:13]} 30. Bf5 {[%clk 0:00:36]}  h4 {[%clk 0:00:12]} 31. Rb3 {[%clk 0:00:36]}  hxg3 {[%clk 0:00:11]} 32. fxg3 {[%clk 0:00:37]}  Rgd8 {[%clk 0:00:09]} 33. Kf2 {[%clk 0:00:35]}  Rh8 {[%clk 0:00:08]} 34. Kg2 {[%clk 0:00:34]}  Rhg8 {[%clk 0:00:05]} 35. Rh1 {[%clk 0:00:33]}  Rgd8 {[%clk 0:00:02]} 36. Rb6 {[%clk 0:00:30]} 1-0


[Site "https://www.chess.com"]

[Event "Titled Tuesday Blitz October 11 Late 2022"]
[White "Rorrer, Grayson"]
[Black "Meduri, Aakaash"]
[WhiteFideId "30944996"]
[BlackFideId "2032252"]
[WhiteElo "2130"]
[BlackElo "2113"]
[Result "0-1"]
[Round "06"]
[TimeControl "180+1"]
[Date "2022.10.12"]
[WhiteClock "0:00:02"]
[BlackClock "0:00:27"]

1. e4 {[%clk 0:03:00]}  c5 {[%clk 0:02:58]} 2. Nf3 {[%clk 0:02:46]}  d6 {[%clk 0:02:58]} 3. d4 {[%clk 0:02:45]}  cxd4 {[%clk 0:02:59]} 4. Nxd4 {[%clk 0:02:45]}  g6 {[%clk 0:03:00]} 5. c4 {[%clk 0:02:37]}  Nc6 {[%clk 0:02:59]} 6. Be3 {[%clk 0:02:35]}  Bg7 {[%clk 0:02:59]} 7. Nc3 {[%clk 0:02:36]}  Nf6 {[%clk 0:02:57]} 8. Be2 {[%clk 0:02:35]}  a6 {[%clk 0:02:57]} 9. O-O {[%clk 0:02:35]}  O-O {[%clk 0:02:58]} 10. h3 {[%clk 0:02:32]}  Bd7 {[%clk 0:02:56]} 11. Qc2 {[%clk 0:02:32]}  Rc8 {[%clk 0:02:55]} 12. f4 {[%clk 0:02:30]}  e6 {[%clk 0:02:55]} 13. Rad1 {[%clk 0:02:27]}  Qc7 {[%clk 0:02:52]} 14. Nxc6 {[%clk 0:01:40]}  Bxc6 {[%clk 0:02:48]} 15. Bd4 {[%clk 0:01:39]}  Rfd8 {[%clk 0:02:21]} 16. Qb3 {[%clk 0:01:19]}  b5 {[%clk 0:01:58]} 17. cxb5 {[%clk 0:01:14]}  axb5 {[%clk 0:01:57]} 18. Bxb5 {[%clk 0:01:10]}  Nxe4 {[%clk 0:01:49]} 19. Nxe4 {[%clk 0:01:00]}  Bxe4 {[%clk 0:01:49]} 20. Bxg7 {[%clk 0:00:54]}  Kxg7 {[%clk 0:01:49]} 21. Qe3 {[%clk 0:00:49]}  Bd5 {[%clk 0:01:43]} 22. a4 {[%clk 0:00:42]}  Qc2 {[%clk 0:01:35]} 23. Rd2 {[%clk 0:00:29]}  Qc7 {[%clk 0:01:30]} 24. b4 {[%clk 0:00:25]}  Rb8 {[%clk 0:01:28]} 25. Qd4+ {[%clk 0:00:23]}  Kg8 {[%clk 0:01:28]} 26. Rdd1 {[%clk 0:00:19]}  Qc2 {[%clk 0:01:25]} 27. Rd2 {[%clk 0:00:19]}  Qc7 {[%clk 0:01:23]} 28. Qb2 {[%clk 0:00:18]}  Qb6+ {[%clk 0:01:20]} 29. Kh2 {[%clk 0:00:18]}  Qe3 {[%clk 0:01:20]} 30. Rd3 {[%clk 0:00:16]}  Qe4 {[%clk 0:01:21]} 31. Rd4 {[%clk 0:00:14]}  Qe3 {[%clk 0:01:16]} 32. Rd3 {[%clk 0:00:14]}  Qe4 {[%clk 0:01:15]} 33. f5 {[%clk 0:00:14]}  Rxb5 {[%clk 0:01:01]} 34. axb5 {[%clk 0:00:09]}  Qxd3 {[%clk 0:01:01]} 35. fxe6 {[%clk 0:00:07]}  Bxe6 {[%clk 0:00:57]} 36. Qf6 {[%clk 0:00:07]}  Rb8 {[%clk 0:00:51]} 37. Re1 {[%clk 0:00:04]}  Qd5 {[%clk 0:00:48]} 38. b6 {[%clk 0:00:03]}  Qf5 {[%clk 0:00:42]} 39. Qd4 {[%clk 0:00:03]}  Qd5 {[%clk 0:00:34]} 40. Qf6 {[%clk 0:00:02]}  Qf5 {[%clk 0:00:31]} 41. Qd4 {[%clk 0:00:02]}  d5 {[%clk 0:00:31]} 42. Qc5 {[%clk 0:00:02]}  Qf4+ {[%clk 0:00:31]} 43. Kg1 {[%clk 0:00:02]}  Qd2 {[%clk 0:00:27]} 44. Qf2 {[%clk 0:00:01]}  Qxf2+ {[%clk 0:00:27]} 45. Kxf2 {[%clk 0:00:02]}  Rxb6 {[%clk 0:00:27]} 0-1


[Site "https://www.chess.com"]

[Event "Titled Tuesday Blitz October 11 Late 2022"]
[White "Rosenberg, Evan S"]
[Black "Rose, Felix"]
[WhiteFideId "2019299"]
[BlackFideId "5105722"]
[WhiteElo "2344"]
[BlackElo "2039"]
[Result "1/2-1/2"]
[Round "06"]
[TimeControl "180+1"]
[Date "2022.10.12"]
[WhiteClock "0:00:03"]
[BlackClock "0:00:12"]

1. e4 {[%clk 0:02:59]}  c5 {[%clk 0:02:59]} 2. Nc3 {[%clk 0:02:59]}  Nc6 {[%clk 0:02:57]} 3. f4 {[%clk 0:03:00]}  g6 {[%clk 0:02:57]} 4. Nf3 {[%clk 0:03:00]}  Bg7 {[%clk 0:02:57]} 5. a4 {[%clk 0:03:00]}  a6 {[%clk 0:02:52]} 6. Bc4 {[%clk 0:02:55]}  e6 {[%clk 0:02:52]} 7. f5 {[%clk 0:02:45]}  Nge7 {[%clk 0:02:52]} 8. fxe6 {[%clk 0:02:14]}  dxe6 {[%clk 0:02:51]} 9. d3 {[%clk 0:02:10]}  O-O {[%clk 0:02:50]} 10. O-O {[%clk 0:02:10]}  Nd4 {[%clk 0:02:50]} 11. Bg5 {[%clk 0:02:07]}  h6 {[%clk 0:02:24]} 12. Be3 {[%clk 0:02:05]}  Nec6 {[%clk 0:02:16]} 13. Qd2 {[%clk 0:02:02]}  Nxf3+ {[%clk 0:01:49]} 14. Rxf3 {[%clk 0:01:56]}  Nd4 {[%clk 0:01:49]} 15. Rf2 {[%clk 0:01:53]}  Qh4 {[%clk 0:01:41]} 16. Raf1 {[%clk 0:01:47]}  Bd7 {[%clk 0:01:36]} 17. b3 {[%clk 0:01:43]}  b5 {[%clk 0:01:28]} 18. axb5 {[%clk 0:01:40]}  axb5 {[%clk 0:01:29]} 19. Nxb5 {[%clk 0:01:22]}  Nxb5 {[%clk 0:01:11]} 20. Bxc5 {[%clk 0:01:19]}  Bd4 {[%clk 0:00:23]} 21. Bxd4 {[%clk 0:01:19]}  Nxd4 {[%clk 0:00:21]} 22. b4 {[%clk 0:01:08]}  Rab8 {[%clk 0:00:18]} 23. c3 {[%clk 0:01:08]}  Nc6 {[%clk 0:00:18]} 24. g3 {[%clk 0:01:01]}  Qh3 {[%clk 0:00:18]} 25. Rf4 {[%clk 0:00:59]}  g5 {[%clk 0:00:11]} 26. Rf6 {[%clk 0:00:56]}  Ne5 {[%clk 0:00:11]} 27. Qg2 {[%clk 0:00:32]}  Qxg2+ {[%clk 0:00:11]} 28. Kxg2 {[%clk 0:00:33]}  Nxc4 {[%clk 0:00:11]} 29. dxc4 {[%clk 0:00:34]}  Rbc8 {[%clk 0:00:09]} 30. c5 {[%clk 0:00:33]}  Kg7 {[%clk 0:00:10]} 31. e5 {[%clk 0:00:30]}  Bb5 {[%clk 0:00:10]} 32. Rd1 {[%clk 0:00:28]}  Rfd8 {[%clk 0:00:10]} 33. Rxd8 {[%clk 0:00:23]}  Rxd8 {[%clk 0:00:10]} 34. Rf2 {[%clk 0:00:22]}  Rd3 {[%clk 0:00:09]} 35. Rc2 {[%clk 0:00:18]}  Ba4 {[%clk 0:00:09]} 36. Ra2 {[%clk 0:00:15]}  Bc6+ {[%clk 0:00:10]} 37. Kf2 {[%clk 0:00:14]}  Rxc3 {[%clk 0:00:10]} 38. Ra6 {[%clk 0:00:13]}  Bd5 {[%clk 0:00:10]} 39. Rd6 {[%clk 0:00:12]}  Rb3 {[%clk 0:00:10]} 40. Rb6 {[%clk 0:00:11]}  Rb2+ {[%clk 0:00:11]} 41. Ke3 {[%clk 0:00:09]}  Rxh2 {[%clk 0:00:11]} 42. c6 {[%clk 0:00:09]}  Rc2 {[%clk 0:00:11]} 43. b5 {[%clk 0:00:10]}  Rc3+ {[%clk 0:00:11]} 44. Kd4 {[%clk 0:00:10]}  Rc4+ {[%clk 0:00:12]} 45. Kd3 {[%clk 0:00:10]}  h5 {[%clk 0:00:12]} 46. Rb7 {[%clk 0:00:06]}  h4 {[%clk 0:00:11]} 47. gxh4 {[%clk 0:00:06]}  gxh4 {[%clk 0:00:11]} 48. Rd7 {[%clk 0:00:04]}  Rb4 {[%clk 0:00:11]} 49. Rxd5 {[%clk 0:00:03]}  exd5 {[%clk 0:00:12]} 50. c7 {[%clk 0:00:04]}  Rb3+ {[%clk 0:00:12]} 51. Kd4 {[%clk 0:00:04]}  Rb4+ {[%clk 0:00:13]} 52. Kd3 {[%clk 0:00:01]}  Rb3+ {[%clk 0:00:12]} 53. Kd4 {[%clk 0:00:02]}  Rb4+ {[%clk 0:00:12]} 54. Kd3 {[%clk 0:00:03]} 1/2-1/2


[Site "https://www.chess.com"]

[Event "Titled Tuesday Blitz October 11 Late 2022"]
[White "Sanchez, Robert"]
[Black "Golubev, Mikhail"]
[WhiteFideId "2034360"]
[BlackFideId "14100983"]
[WhiteElo "2429"]
[BlackElo "2374"]
[Result "0-1"]
[Round "06"]
[TimeControl "180+1"]
[Date "2022.10.12"]
[WhiteClock "0:01:13"]
[BlackClock "0:00:58"]

1. e4 {[%clk 0:03:00]}  c5 {[%clk 0:02:58]} 2. Nf3 {[%clk 0:03:00]}  d6 {[%clk 0:02:58]} 3. d4 {[%clk 0:03:00]}  Nf6 {[%clk 0:02:58]} 4. Nc3 {[%clk 0:03:01]}  cxd4 {[%clk 0:02:58]} 5. Nxd4 {[%clk 0:03:01]}  Nc6 {[%clk 0:02:59]} 6. f3 {[%clk 0:03:02]}  e5 {[%clk 0:02:56]} 7. Nb3 {[%clk 0:03:01]}  Be7 {[%clk 0:02:56]} 8. Be3 {[%clk 0:03:02]}  O-O {[%clk 0:02:55]} 9. Qd2 {[%clk 0:03:02]}  a5 {[%clk 0:02:55]} 10. Bb5 {[%clk 0:03:02]}  Be6 {[%clk 0:02:55]} 11. O-O-O {[%clk 0:03:00]}  Nb4 {[%clk 0:02:55]} 12. Kb1 {[%clk 0:02:52]}  d5 {[%clk 0:02:43]} 13. exd5 {[%clk 0:02:52]}  Nfxd5 {[%clk 0:02:28]} 14. a4 {[%clk 0:02:13]}  Nxc3+ {[%clk 0:02:20]} 15. Qxc3 {[%clk 0:02:13]}  Qb8 {[%clk 0:02:06]} 16. Bd7 {[%clk 0:01:52]}  Nd5 {[%clk 0:01:43]} 17. Rxd5 {[%clk 0:01:46]}  Bxd5 {[%clk 0:01:40]} 18. Bb5 {[%clk 0:01:42]}  Rc8 {[%clk 0:01:31]} 19. Qd2 {[%clk 0:01:39]}  Be6 {[%clk 0:01:17]} 20. g4 {[%clk 0:01:21]}  Qc7 {[%clk 0:01:14]} 21. Bd3 {[%clk 0:01:17]}  Rd8 {[%clk 0:01:05]} 22. Qf2 {[%clk 0:01:13]}  Rxd3 {[%clk 0:00:58]} 0-1


[Site "https://www.chess.com"]

[Event "Titled Tuesday Blitz October 11 Late 2022"]
[White "Shandrygin, Nikita"]
[Black "Fernandez Siles, Luis"]
[WhiteFideId "24198668"]
[BlackFideId "2209420"]
[WhiteElo "2323"]
[BlackElo "2186"]
[Result "1-0"]
[Round "06"]
[TimeControl "180+1"]
[Date "2022.10.12"]
[WhiteClock "0:00:38"]
[BlackClock "0:01:05"]

1. e4 {[%clk 0:03:00]}  c5 {[%clk 0:02:59]} 2. Nf3 {[%clk 0:03:00]}  Nc6 {[%clk 0:02:58]} 3. d4 {[%clk 0:03:01]}  cxd4 {[%clk 0:02:59]} 4. Nxd4 {[%clk 0:03:02]}  Nf6 {[%clk 0:03:00]} 5. Nc3 {[%clk 0:03:02]}  e5 {[%clk 0:03:00]} 6. Ndb5 {[%clk 0:03:03]}  d6 {[%clk 0:03:01]} 7. Bg5 {[%clk 0:03:02]}  a6 {[%clk 0:03:01]} 8. Na3 {[%clk 0:03:03]}  b5 {[%clk 0:03:02]} 9. Nd5 {[%clk 0:03:03]}  Be7 {[%clk 0:03:02]} 10. Bxf6 {[%clk 0:03:04]}  Bxf6 {[%clk 0:03:03]} 11. c3 {[%clk 0:03:04]}  O-O {[%clk 0:03:03]} 12. Nc2 {[%clk 0:03:04]}  Rb8 {[%clk 0:03:03]} 13. Nce3 {[%clk 0:02:53]}  Bg5 {[%clk 0:03:03]} 14. a4 {[%clk 0:02:52]}  bxa4 {[%clk 0:03:00]} 15. Qxa4 {[%clk 0:02:47]}  Bb7 {[%clk 0:02:35]} 16. Bc4 {[%clk 0:02:39]}  Bxe3 {[%clk 0:02:21]} 17. Nxe3 {[%clk 0:02:37]}  Ne7 {[%clk 0:02:21]} 18. O-O {[%clk 0:01:58]}  Bxe4 {[%clk 0:02:17]} 19. Bxf7+ {[%clk 0:01:58]}  Rxf7 {[%clk 0:02:15]} 20. Qxe4 {[%clk 0:01:59]}  Rxb2 {[%clk 0:02:15]} 21. Rxa6 {[%clk 0:01:59]}  Kh8 {[%clk 0:02:03]} 22. Rd1 {[%clk 0:01:35]}  d5 {[%clk 0:01:39]} 23. c4 {[%clk 0:00:51]}  Qc8 {[%clk 0:01:31]} 24. Qxe5 {[%clk 0:00:45]}  Qxa6 {[%clk 0:01:27]} 25. Qxb2 {[%clk 0:00:44]}  dxc4 {[%clk 0:01:05]} 26. Rd8+ {[%clk 0:00:40]}  Ng8 {[%clk 0:01:05]} 27. Qb8 {[%clk 0:00:38]} 1-0


[Site "https://www.chess.com"]